bitfinex/quotes_SOLUSD_20241226
["timestamp","ask_amount","ask_price","bid_price","bid_amount"]
[1735218457804,0.99484697,188.49,188.4,9.61817601]
[1735218460384,0.99484697,188.49,188.39,129.61817601]
[1735218461286,0.99484697,188.49,188.4,9.61817601]
[1735218461529,0.99484697,188.49,188.39,129.61817601]
[1735218461692,0.99484697,188.49,188.4,9.61817601]
[1735218463327,20.0,188.5,188.41,0.79590309]
[1735218463620,20.0,188.5,188.4,10.41404504]
[1735218464018,0.99483518,188.49,188.4,0.79586903]
[1735218464608,0.99483518,188.49,188.39,129.61817601]
[1735218464812,20.99483518,188.49,188.39,120.0]
[1735218465015,20.99483518,188.49,188.39,129.61817601]
[1735218467700,20.99483518,188.49,188.39,120.0]
[1735218467901,20.99483518,188.49,188.39,129.61817601]
[1735218470715,62.97104236,188.64,188.48,11.20597601]
[1735218471011,17.47987556,188.62,188.56,9.61817601]
[1735218471202,16.48552118,188.62,188.58,9.61817601]
[1735218471714,16.48552118,188.62,188.59,9.61817601]
[1735218471914,6.4987,188.67,188.59,9.61817601]
[1735218472108,6.4987,188.67,188.6,9.61817601]
[1735218472616,6.4987,188.67,188.59,9.61817601]
[1735218472821,6.4987,188.67,188.6,9.61817601]
[1735218473001,6.4987,188.67,188.61,9.61817601]
[1735218473622,6.4987,188.71,188.65,9.61817601]
[1735218473806,0.99378712,188.74,188.66,9.61817601]
[1735218473995,0.99356236,188.75,188.67,9.61817601]
[1735218474501,0.99351746,188.78,188.7,9.61817601]
[1735218475096,0.99339759,188.81,188.71,9.61817601]
[1735218477717,20.0,188.79,188.71,9.61817601]
[1735218478203,20.0,188.79,188.72,0.79461381]
[1735218478404,20.99326726,188.84,188.74,9.61817601]
[1735218478610,20.99326726,188.84,188.72,0.79461381]
[1735218478817,20.99326726,188.84,188.72,9.61817601]
[1735218479016,20.99326726,188.84,188.71,1.5878]
[1735218479220,20.0,188.8,188.68,9.61817601]
[1735218479411,0.99343143,188.79,188.68,9.61817601]
[1735218481332,20.12549,188.78,188.65,0.79474515]
[1735218481509,0.99351381,188.77,188.67,9.61817601]
[1735218482429,0.99351381,188.77,188.68,9.61817601]
[1735218482620,0.99351381,188.77,188.66,23.776884]
[1735218482920,0.99351381,188.77,188.67,9.61817601]
[1735218484433,0.99351381,188.77,188.66,9.61817601]
[1735218485132,20.0,188.73,188.62,0.79479601]
[1735218485309,20.99371971,188.72,188.61,9.61817601]
[1735218485808,20.99371971,188.72,188.62,9.61817601]
[1735218486231,20.99371971,188.72,188.62,15.20668639]
[1735218486719,0.12549,188.71,188.61,15.20668639]
[1735218488330,0.12549,188.71,188.62,15.20668639]
[1735218488522,20.99371971,188.72,188.62,15.20668639]
[1735218488722,20.0,188.73,188.64,15.20668639]
[1735218489033,0.99363024,188.72,188.65,23.776884]
[1735218489222,0.99357232,188.72,188.63,15.20668639]
[1735218489422,20.0,188.73,188.63,15.20668639]
[1735218489734,0.99369777,188.75,188.65,38.98357039]
[1735218491011,20.0,188.73,188.67,23.776884]
[1735218491226,20.0,188.73,188.68,23.776884]
[1735218492135,20.0,188.73,188.67,15.20668639]
[1735218492333,20.0,188.73,188.68,23.776884]
[1735218492637,20.0,188.73,188.64,15.20668639]
[1735218492825,0.99363119,188.72,188.63,15.20668639]
[1735218493330,20.0,188.73,188.64,23.776884]
[1735218494219,21.11912007,188.72,188.61,15.20668639]
[1735218494737,21.11912007,188.72,188.62,23.776884]
[1735218495043,0.12549,188.7,188.6,15.20668639]
[1735218495219,20.0,188.69,188.6,15.20668639]
[1735218495537,20.0,188.69,188.61,23.776884]
[1735218495714,0.99383612,188.68,188.6,15.20668639]
[1735218495914,20.99385071,188.69,188.6,15.20668639]
[1735218497026,20.0,188.69,188.61,23.776884]
[1735218497840,20.99383661,188.69,188.61,23.776884]
[1735218498841,20.0,188.69,188.61,23.776884]
[1735218501425,20.0,188.65,188.6,23.776884]
[1735218501832,20.0,188.65,188.55,38.98357039]
[1735218502031,20.0,188.65,188.57,23.776884]
[1735218502425,21.11938494,188.64,188.54,1.6283]
[1735218502921,21.11938494,188.64,188.52,0.79511595]
[1735218503236,0.12549,188.61,188.47,0.79535531]
[1735218503435,20.0,188.57,188.46,1.643]
[1735218503650,0.9945185,188.56,188.46,1.643]
[1735218503938,20.12549,188.55,188.44,16.00227394]
[1735218504122,0.99460962,188.54,188.44,16.00227394]
[1735218504447,20.12549,188.55,188.45,23.776884]
[1735218504747,20.0,188.57,188.49,15.20668639]
[1735218505047,20.0,188.57,188.51,38.98357039]
[1735218505428,20.0,188.57,188.51,23.776884]
[1735218506245,20.0,188.57,188.48,15.20668639]
[1735218506429,0.99446689,188.56,188.45,16.00214854]
[1735218506621,0.99446689,188.56,188.45,0.79546215]
[1735218507028,0.12549,188.55,188.45,0.79546215]
[1735218507551,0.12549,188.55,188.45,16.00214854]
[1735218507724,0.12549,188.55,188.46,38.98357039]
[1735218508126,20.0,188.57,188.48,23.776884]
[1735218508550,0.9944645,188.56,188.46,15.20668639]
[1735218509247,0.9944645,188.56,188.46,23.776884]
[1735218509424,0.9944645,188.56,188.46,38.98357039]
[1735218509944,20.0,188.57,188.46,38.98357039]
[1735218510152,20.0,188.57,188.48,23.776884]
[1735218513563,20.0,188.57,188.48,23.776884]
[1735218514767,20.0,188.57,188.48,38.98357039]
[1735218514987,20.0,188.57,188.5,23.776884]
[1735218515141,20.0,188.57,188.5,39.77902587]
[1735218515349,6.1117,188.6,188.52,23.776884]
[1735218517660,6.1117,188.6,188.51,0.79537905]
[1735218517661,20.0,188.57,188.51,0.79537905]
[1735218517964,20.0,188.57,188.47,16.00207742]
[1735218518153,20.0,188.57,188.47,0.79539103]
[1735218518154,0.99444077,188.56,188.47,0.79539103]
[1735218519161,20.0,188.57,188.48,23.776884]
[1735218519470,20.0,188.57,188.48,38.98357039]
[1735218519666,20.0,188.57,188.5,23.776884]
[1735218522170,20.0,188.57,188.52,23.776884]
[1735218522383,6.1117,188.6,188.52,23.776884]
[1735218522584,20.0,188.57,188.52,23.776884]
[1735218522785,20.0,188.57,188.5,15.20668639]
[1735218523753,20.0,188.57,188.51,23.776884]
[1735218525793,20.0,188.57,188.49,15.20668639]
[1735218525959,20.0,188.57,188.49,16.0021332]
[1735218526460,20.0,188.57,188.41,153.563]
[1735218526461,20.0,188.57,188.44,13.2666]
[1735218526769,0.99439623,188.56,188.46,15.20668639]
[1735218527073,0.99439623,188.56,188.46,23.776884]
[1735218527372,0.99439623,188.56,188.45,16.00220338]
[1735218527771,0.99439623,188.56,188.46,38.98357039]
[1735218528171,0.99439623,188.56,188.48,23.776884]
[1735218529282,0.12549,188.55,188.45,15.20668639]
[1735218530484,20.0,188.54,188.45,15.20668639]
[1735218530778,20.99460763,188.54,188.45,15.20668639]
[1735218531694,20.0,188.54,188.46,23.776884]
[1735218531865,0.99463575,188.53,188.46,23.776884]
[1735218533774,6.0903,188.52,188.42,15.20668639]
[1735218533962,0.99475732,188.51,188.42,15.20668639]
[1735218534463,6.0903,188.52,188.42,15.20668639]
[1735218534667,0.99478374,188.51,188.43,23.776884]
[1735218535192,0.99478374,188.51,188.41,1.643]
[1735218535193,20.0,188.49,188.41,15.20668639]
[1735218535902,20.0,188.49,188.4,0.79589495]
[1735218536185,20.0,188.44,188.39,120.0]
[1735218536561,0.99515706,188.43,188.39,120.0]
[1735218536961,20.0,188.44,188.39,120.0]
[1735218538466,0.99511311,188.46,188.39,120.0]
[1735218538792,7.08526364,188.52,188.42,15.20668639]
[1735218538993,0.99472313,188.51,188.42,0.79577851]
[1735218539162,0.99472313,188.51,188.41,23.776884]
[1735218539356,0.99472313,188.51,188.41,38.98357039]
[1735218539587,0.99472313,188.51,188.42,23.776884]
[1735218539774,0.99472313,188.51,188.41,23.776884]
[1735218540087,20.0,188.49,188.4,0.79582269]
[1735218540388,20.0,188.49,188.39,136.73938639]
[1735218540389,0.99483165,188.48,188.39,120.0]
[1735218540868,20.0,188.49,188.4,39.77954532]
[1735218541697,0.99483528,188.48,188.4,24.57285893]
[1735218541885,0.99483528,188.48,188.39,120.0]
[1735218542264,0.99483528,188.48,188.4,23.776884]
[1735218542503,20.0,188.49,188.4,24.57284017]
[1735218542867,0.99485635,188.48,188.4,24.57284017]
[1735218543177,20.0,188.49,188.4,24.57284017]
[1735218543384,0.99489423,188.48,188.39,120.0]
[1735218545689,0.99489423,188.48,188.4,23.776884]
[1735218545986,6.0903,188.52,188.41,15.20668639]
[1735218546187,6.0903,188.52,188.42,0.79577266]
[1735218547286,0.99469905,188.51,188.42,0.79577266]
[1735218547488,20.0,188.49,188.4,24.57273451]
[1735218547869,20.0,188.49,188.4,39.7794209]
[1735218548384,20.0,188.49,188.4,24.57273451]
[1735218550612,20.0,188.49,188.4,39.7794209]
[1735218551107,20.0,188.49,188.4,24.57273451]
[1735218551411,20.0,188.49,188.4,16.0025369]
[1735218552411,6.0903,188.52,188.41,23.776884]
[1735218552573,6.0903,188.52,188.42,0.79574143]
[1735218555783,6.0903,188.52,188.42,16.00242782]
[1735218557001,6.0903,188.52,188.44,23.776884]
[1735218557301,6.0903,188.52,188.44,24.57255457]
[1735218557595,6.0903,188.52,188.44,39.77924096]
[1735218557794,20.0,188.56,188.44,39.77924096]
[1735218557996,0.99453254,188.58,188.48,15.20668639]
[1735218558300,0.99453254,188.58,188.47,15.20668639]
[1735218558477,0.99453254,188.58,188.49,23.776884]
[1735218558674,0.99453254,188.58,188.48,0.79551522]
[1735218558873,0.99453254,188.58,188.49,23.776884]
[1735218560226,20.0,188.56,188.49,23.776884]
[1735218562508,20.0,188.56,188.48,0.79551522]
[1735218562803,0.99442302,188.55,188.45,0.79553841]
[1735218563308,0.99442302,188.55,188.46,23.776884]
[1735218565708,6.6635,188.54,188.46,23.776884]
[1735218567308,6.6635,188.54,188.47,0.79558375]
[1735218568309,6.6635,188.54,188.47,16.00227014]
[1735218568805,6.6635,188.59,188.48,23.776884]
[1735218569303,6.6635,188.59,188.49,0.79547776]
[1735218569483,6.6635,188.59,188.5,23.776884]
[1735218569686,6.6635,188.59,188.52,23.776884]
[1735218570792,6.6635,188.59,188.48,15.20668639]
[1735218570992,6.6635,188.59,188.49,23.776884]
[1735218571384,6.6635,188.59,188.49,15.20668639]
[1735218571711,6.6635,188.59,188.49,16.00214138]
[1735218571898,6.6635,188.59,188.51,23.776884]
[1735218572209,6.6635,188.59,188.51,24.57231793]
[1735218574004,6.6635,188.59,188.51,34.31577149]
[1735218574907,6.6635,188.59,188.55,23.776884]
[1735218575204,20.0,188.63,188.57,23.776884]
[1735218576111,6.0103,188.66,188.57,23.776884]
[1735218576609,6.0103,188.66,188.59,23.776884]
[1735218576907,6.0103,188.66,188.6,0.79510274]
[1735218577096,6.0103,188.66,188.61,23.776884]
[1735218577301,6.0103,188.66,188.59,16.01033035]
[1735218577888,6.0103,188.66,188.61,23.776884]
[1735218578315,6.0103,188.66,188.59,0.79507736]
[1735218578612,6.0103,188.66,188.59,16.01033035]
[1735218578824,0.99379793,188.74,188.59,0.79507736]
[1735218578984,20.0,188.68,188.61,38.99213699]
[1735218579188,6.0103,188.71,188.63,23.776884]
[1735218579387,6.0103,188.71,188.65,23.776884]
[1735218580214,6.0103,188.71,188.67,23.776884]
[1735218581016,6.0103,188.79,188.67,23.776884]
[1735218581196,0.99343647,188.78,188.67,23.776884]
[1735218581401,20.0,188.76,188.69,23.776884]
[1735218582197,0.99343647,188.78,188.69,23.776884]
[1735218582402,6.0103,188.79,188.71,23.776884]
[1735218583506,6.0103,188.79,188.71,38.99213699]
[1735218583694,6.0103,188.84,188.73,23.776884]
[1735218584005,6.0103,188.84,188.75,23.776884]
[1735218585691,6.0103,188.84,188.77,23.776884]
[1735218586913,20.0,188.86,188.77,23.776884]
[1735218587295,20.0,188.86,188.79,23.776884]
[1735218587921,20.0,188.86,188.81,23.776884]
[1735218588218,6.0103,188.89,188.81,23.776884]
[1735218589320,6.0103,188.89,188.83,23.776884]
[1735218589796,0.12549,188.97,188.83,23.776884]
[1735218589996,1.11802545,188.97,188.83,23.776884]
[1735218590396,1.11802545,188.97,188.85,23.776884]
[1735218591723,20.0,188.95,188.85,23.776884]
[1735218591931,0.9925483,188.94,188.85,23.776884]
[1735218594507,20.0,188.95,188.87,23.776884]
[1735218596613,20.0,188.95,188.89,23.776884]
[1735218597214,20.0,188.95,188.91,23.776884]
[1735218598014,17.91032051,189.02,188.91,23.776884]
[1735218598213,18.90242719,189.02,188.93,23.776884]
[1735218599816,20.0,188.99,188.93,23.776884]
[1735218601435,20.0,188.99,188.92,0.79368534]
[1735218601618,0.99213201,188.98,188.9,1.5386]
[1735218602009,0.99213201,188.98,188.91,23.776884]
[1735218602229,0.99213201,188.98,188.9,1.5386]
[1735218602434,0.12549,188.97,188.85,1.5386]
[1735218602621,0.12549,188.95,188.85,1.5386]
[1735218603534,0.12549,188.94,188.85,1.5386]
[1735218603709,0.9926008,188.93,188.85,1.5386]
[1735218604615,6.6182,188.92,188.82,23.776884]
[1735218605530,6.6182,188.92,188.81,0.79408018]
[1735218606235,0.99260516,188.91,188.82,23.776884]
[1735218607415,20.0,188.89,188.81,0.79408018]
[1735218607613,0.99270119,188.88,188.78,1.6401]
[1735218607814,0.99270119,188.88,188.74,2.4343563]
[1735218608019,0.12549,188.87,188.74,2.4343563]
[1735218608319,0.12549,188.84,188.74,1.6401]
[1735218608513,0.12549,188.84,188.71,0.79440468]
[1735218608514,6.6182,188.83,188.71,0.79440468]
[1735218608731,20.0,188.8,188.71,0.79440468]
[1735218609413,20.0,188.8,188.7,2.43468897]
[1735218609414,0.99323622,188.79,188.7,2.43468897]
[1735218609619,0.99325664,188.79,188.7,2.43468897]
[1735218610316,20.0,188.8,188.7,2.43468897]
[1735218610517,0.99326039,188.79,188.71,23.776884]
[1735218610919,0.99326606,188.79,188.71,23.776884]
[1735218611728,20.0,188.72,188.54,137.6401]
[1735218611922,0.99374008,188.71,188.57,15.21525299]
[1735218612117,0.99374008,188.71,188.58,16.01029483]
[1735218612558,0.12549,188.7,188.58,0.79504184]
[1735218612723,0.12549,188.7,188.54,1.6401]
[1735218612724,0.12549,188.7,188.55,15.21525299]
[1735218612931,0.12549,188.7,188.57,15.21525299]
[1735218613235,0.12549,188.7,188.59,23.776884]
[1735218613719,0.12549,188.7,188.58,16.01030429]
[1735218614335,20.99374008,188.71,188.59,23.776884]
[1735218614538,0.99374008,188.71,188.61,23.776884]
[1735218621647,0.12549,188.7,188.57,0.79505575]
[1735218622750,20.99374008,188.71,188.58,38.99213699]
[1735218623054,20.0,188.72,188.59,16.01022366]
[1735218623448,20.0,188.72,188.61,23.776884]
[1735218623650,20.0,188.72,188.63,23.776884]
[1735218624049,0.99367179,188.71,188.63,23.776884]
[1735218624229,0.99367179,188.71,188.59,23.776884]
[1735218624430,0.12549,188.7,188.61,23.776884]
[1735218624630,0.99389408,188.69,188.61,23.776884]
[1735218625336,0.99389408,188.69,188.59,23.776884]
[1735218625556,0.99390082,188.68,188.58,23.776884]
[1735218625852,1.11938946,188.7,188.58,23.776884]
[1735218628662,1.11938946,188.7,188.6,23.776884]
[1735218629359,1.11938946,188.7,188.54,1.6401]
[1735218629360,0.12549,188.66,188.54,1.6401]
[1735218629661,21.11962198,188.66,188.54,1.6401]
[1735218630055,20.99413198,188.66,188.55,23.776884]
[1735218630254,20.99413198,188.66,188.55,24.57215636]
[1735218632359,20.99413198,188.66,188.55,0.79527236]
[1735218632360,0.12549,188.65,188.55,0.79527236]
[1735218632563,20.99413198,188.66,188.54,1.6401]
[1735218632740,20.99413198,188.66,188.55,23.776884]
[1735218635363,0.12549,188.65,188.55,23.776884]
[1735218635562,0.12549,188.65,188.54,1.6401]
[1735218635563,0.12549,188.65,188.52,0.79529681]
[1735218635867,0.12549,188.65,188.52,23.776884]
[1735218636163,0.99424009,188.64,188.52,23.776884]
[1735218637067,0.99421952,188.63,188.52,23.776884]
[1735218638147,6.1435,188.64,188.52,23.776884]
[1735218638347,20.0,188.61,188.51,23.776884]
[1735218638560,20.0,188.61,188.52,0.79536637]
[1735218640165,6.1435,188.64,188.54,33.51571619]
[1735218640470,6.1435,188.64,188.56,23.776884]
[1735218641347,6.1435,188.64,188.53,0.7952682]
[1735218641669,6.1435,188.64,188.54,23.776884]
[1735218642150,6.1435,188.64,188.56,23.776884]
[1735218647369,20.0,188.61,188.51,14.05673725]
[1735218647869,20.0,188.61,188.52,23.776884]
[1735218649358,0.99418123,188.6,188.49,1.5648]
[1735218649549,0.99418123,188.6,188.5,23.776884]
[1735218649973,0.99418123,188.6,188.46,0.79545921]
[1735218650247,0.99418123,188.6,188.47,23.776884]
[1735218650447,0.99418123,188.6,188.47,33.51571619]
[1735218650652,0.99418123,188.6,188.48,0.79551156]
[1735218651569,0.99418123,188.6,188.49,23.776884]
[1735218652784,27.838,188.59,188.49,23.776884]
[1735218653075,0.99418123,188.6,188.4,9.73883219]
[1735218653076,20.0,188.55,188.4,9.73883219]
[1735218653257,0.99471518,188.54,188.4,10.53460434]
[1735218653455,0.99471518,188.54,188.41,33.51571619]
[1735218653661,0.99471518,188.54,188.42,0.79572366]
[1735218654569,0.99471518,188.54,188.43,23.776884]
[1735218655274,6.0264,188.53,188.43,23.776884]
[1735218656892,6.0264,188.53,188.45,23.776884]
[1735218657071,6.0264,188.53,188.47,23.776884]
[1735218657873,20.0,188.55,188.49,23.776884]
[1735218658075,6.0264,188.58,188.49,23.776884]
[1735218658969,6.0264,188.58,188.51,23.776884]
[1735218659779,6.0264,188.58,188.53,23.776884]
[1735218661671,0.99427206,188.67,188.53,23.776884]
[1735218661672,20.0,188.63,188.53,23.776884]
[1735218662089,0.99416104,188.62,188.53,23.776884]
[1735218664098,0.9941751,188.62,188.55,23.776884]
[1735218664467,0.9941751,188.62,188.5,0.79533407]
[1735218664787,0.9941751,188.62,188.51,23.776884]
[1735218665694,20.0,188.58,188.51,23.776884]
[1735218666323,20.0,188.58,188.47,0.7954576]
[1735218666802,20.0,188.58,188.48,23.776884]
[1735218667573,20.0,188.58,188.5,23.776884]
[1735218670709,20.0,188.58,188.52,23.776884]
[1735218671116,6.3412,188.61,188.54,23.776884]
[1735218671415,20.0,188.58,188.5,13.2619]
[1735218671610,20.0,188.58,188.47,13.2646]
[1735218671775,20.0,188.58,188.49,23.776884]
[1735218671972,20.0,188.58,188.51,23.776884]
[1735218673505,0.99432803,188.57,188.47,13.2646]
[1735218673692,20.0,188.58,188.47,13.2646]
[1735218674416,20.0,188.58,188.48,23.776884]
[1735218674698,20.0,188.58,188.48,24.57239998]
[1735218676708,20.0,188.58,188.49,13.2633]
[1735218676911,20.0,188.58,188.51,23.776884]
[1735218678221,6.3412,188.61,188.51,23.776884]
[1735218680209,20.0,188.58,188.51,23.776884]
[1735218680519,20.0,188.58,188.46,14.06089467]
[1735218681619,20.0,188.58,188.47,23.776884]
[1735218682500,0.99437515,188.57,188.47,23.776884]
[1735218683203,20.0,188.53,188.43,13.2673]
[1735218684606,20.0,188.53,188.44,23.776884]
[1735218684810,20.0,188.53,188.46,23.776884]
[1735218689625,6.2489,188.56,188.47,14.06030379]
[1735218689817,6.2489,188.56,188.48,23.776884]
[1735218697827,20.0,188.53,188.41,12.47965835]
[1735218698027,6.6211,188.51,188.41,8.22685295]
[1735218698202,20.0,188.48,188.39,120.0]
[1735218698507,20.0,188.48,188.41,23.776884]
[1735218699429,6.6211,188.51,188.41,23.776884]
[1735218699934,6.6211,188.51,188.43,23.776884]
[1735218700154,6.6211,188.51,188.44,0.79566707]
[1735218700436,6.6211,188.51,188.45,23.776884]
[1735218700612,0.99476153,188.5,188.39,133.2703]
[1735218700809,0.99476153,188.5,188.4,23.776884]
[1735218701210,20.0,188.48,188.4,23.776884]
[1735218701607,6.6211,188.51,188.42,23.776884]
[1735218701817,6.6211,188.51,188.42,37.044984]
[1735218702026,0.99466011,188.5,188.41,0.79572808]
[1735218702720,20.0,188.48,188.41,0.79572808]
[1735218703031,20.0,188.48,188.42,23.776884]
[1735218704238,6.6211,188.51,188.42,23.776884]
[1735218704430,20.0,188.53,188.42,23.776884]
[1735218704738,0.99477523,188.52,188.42,23.776884]
[1735218710650,0.9947802,188.55,188.44,23.776884]
[1735218710853,0.9947802,188.55,188.46,23.776884]
[1735218711054,6.6211,188.56,188.46,23.776884]
[1735218711452,6.6211,188.56,188.48,23.776884]
[1735218711629,6.6211,188.56,188.5,23.776884]
[1735218712049,6.1084,188.61,188.52,23.776884]
[1735218712240,7.10267616,188.61,188.52,23.776884]
[1735218713566,6.1084,188.61,188.54,23.776884]
[1735218714754,6.1084,188.61,188.56,23.776884]
[1735218716042,20.0,188.65,188.56,23.776884]
[1735218716238,20.0,188.63,188.56,23.776884]
[1735218719660,6.1019,188.66,188.57,0.79523673]
[1735218719864,20.0,188.69,188.6,23.776884]
[1735218720060,0.99385393,188.76,188.66,33.52430103]
[1735218720356,16.21467582,188.79,188.68,23.776884]
[1735218720535,16.21467582,188.79,188.7,23.776884]
[1735218720737,16.21467582,188.79,188.72,23.776884]
[1735218720933,0.99322008,188.78,188.69,0.79457606]
[1735218721177,0.99336494,188.77,188.68,1.5712]
[1735218721340,1.11898891,188.76,188.64,0.79469195]
[1735218721541,0.99359566,188.8,188.65,9.74741703]
[1735218721842,0.99346244,188.79,188.66,24.57165395]
[1735218722185,1.11894779,188.78,188.66,39.7708717]
[1735218722536,1.11894779,188.78,188.66,24.57165395]
[1735218722863,0.99336256,188.77,188.66,24.57165395]
[1735218723553,20.0,188.78,188.66,53.0220717]
[1735218723868,6.1019,188.81,188.7,23.776884]
[1735218724059,0.9933857,188.84,188.72,25.319384]
[1735218724249,6.2339,188.86,188.74,23.776884]
[1735218724449,0.99307934,188.85,188.74,23.776884]
[1735218724674,0.12549,188.84,188.74,23.776884]
[1735218724961,0.99307934,188.85,188.76,23.776884]
[1735218726145,0.99307934,188.85,188.77,0.12549]
[1735218726490,0.99301257,188.92,188.8,38.97610175]
[1735218726644,0.99301257,188.92,188.82,23.776884]
[1735218726962,0.99301257,188.92,188.84,23.776884]
[1735218727355,6.2339,188.93,188.84,23.776884]
[1735218727949,7.22648955,188.98,188.84,23.776884]
[1735218728156,20.0,188.95,188.84,38.97610175]
[1735218728468,20.0,188.95,188.86,23.776884]
[1735218728853,7.22648955,188.98,188.86,23.776884]
[1735218729058,0.9924529,188.97,188.86,23.776884]
[1735218729659,0.12549,188.96,188.84,0.79397707]
[1735218729858,0.99253886,188.95,188.84,0.79397707]
[1735218730258,20.99253886,188.95,188.85,23.776884]
[1735218731965,20.0,188.95,188.86,0.79402496]
[1735218732875,0.99246305,188.94,188.84,24.57085444]
[1735218733261,20.0,188.95,188.84,24.57085444]
[1735218733855,20.0,188.95,188.85,28.43721775]
[1735218734058,20.0,188.95,188.86,38.97610175]
[1735218734252,6.3461,189.03,188.88,23.776884]
[1735218734454,0.99226078,189.02,188.88,23.776884]
[1735218734761,0.99226078,189.02,188.9,23.776884]
[1735218735463,0.12549,189.01,188.9,23.776884]
[1735218735668,0.99220958,189.0,188.9,23.776884]
[1735218735864,0.99224433,189.02,188.9,23.776884]
[1735218736759,20.0,189.0,188.9,23.776884]
[1735218737472,0.99220852,188.99,188.9,23.776884]
[1735218737673,20.0,189.0,188.9,23.776884]
[1735218738073,0.12549,188.98,188.89,2.45838692]
[1735218738268,0.12549,188.98,188.89,1.6646]
[1735218738772,0.12549,188.98,188.84,28.43721775]
[1735218738773,0.12549,188.98,188.84,1.6646]
[1735218739669,0.12549,188.96,188.84,1.6646]
[1735218740056,0.12549,188.96,188.85,23.776884]
[1735218740253,0.12549,188.91,188.8,1.5028]
[1735218740452,21.11831866,188.91,188.8,1.5028]
[1735218741380,21.11831866,188.91,188.75,1.5028]
[1735218741569,0.12549,188.88,188.75,1.5028]
[1735218741777,1.11850314,188.88,188.75,1.5028]
[1735218741971,1.11850314,188.88,188.75,2.29720961]
[1735218742979,0.12549,188.86,188.75,1.5028]
[1735218743285,20.0,188.82,188.71,15.19921775]
[1735218743471,0.99320705,188.81,188.72,23.776884]
[1735218743775,0.99320705,188.81,188.7,17.49655394]
[1735218743963,0.99320705,188.81,188.71,15.19921775]
[1735218744780,0.99320705,188.81,188.72,38.97610175]
[1735218744971,20.0,188.82,188.74,15.19921775]
[1735218745171,20.0,188.82,188.74,23.776884]
[1735218745575,0.12549,188.8,188.7,1.5028]
[1735218745782,0.99333037,188.79,188.7,1.5028]
[1735218745973,0.99335308,188.81,188.71,23.776884]
[1735218746663,0.99335308,188.81,188.71,52.22390175]
[1735218746860,20.0,188.82,188.72,0.7945465]
[1735218747087,20.0,188.82,188.72,15.99376425]
[1735218747709,20.0,188.82,188.73,15.19921775]
[1735218747985,20.0,188.82,188.74,24.57135668]
[1735218748288,20.0,188.82,188.74,39.77057443]
[1735218748890,20.0,188.82,188.74,53.01607443]
[1735218749183,6.3101,188.85,188.74,53.01607443]
[1735218750292,6.3101,188.85,188.76,23.776884]
[1735218750587,6.3101,188.85,188.76,24.57120908]
[1735218751191,0.99299071,188.9,188.78,23.776884]
[1735218751492,0.99299071,188.9,188.8,23.776884]
[1735218751664,0.99299071,188.9,188.8,24.57109091]
[1735218752003,6.3101,188.96,188.82,23.776884]
[1735218752295,0.12549,188.94,188.82,24.57098774]
[1735218752508,6.3101,188.96,188.82,39.77020549]
[1735218752509,0.99259908,188.93,188.82,39.77020549]
[1735218752868,0.12549,188.94,188.82,39.77020549]
[1735218753108,0.992555,188.93,188.82,39.77020549]
[1735218753307,0.99255341,188.94,188.84,23.776884]
[1735218753601,0.99255341,188.94,188.84,24.57088423]
[1735218754384,0.99250392,188.95,188.84,24.57088423]
[1735218754798,20.0,188.93,188.84,24.57088423]
[1735218756802,20.0,188.93,188.84,23.776884]
[1735218757997,6.3101,188.96,188.86,23.776884]
[1735218758171,6.3101,188.96,188.86,24.57083566]
[1735218759384,6.5506,189.02,188.88,37.012784]
[1735218759588,20.0,188.99,188.88,37.80655902]
[1735218759788,20.0,188.99,188.88,53.00577677]
[1735218760398,0.99221877,189.01,188.88,53.00577677]
[1735218760902,0.99213745,189.01,188.9,23.776884]
[1735218761097,0.99213745,189.01,188.92,23.776884]
[1735218761472,6.5506,189.02,188.92,23.776884]
[1735218761714,6.5506,189.06,188.94,23.776884]
[1735218762013,0.99198221,189.05,188.94,23.776884]
[1735218762896,0.99198221,189.05,188.96,23.776884]